fUSD/lending_fUSD_20250806
["ID","MTS","AMOUNT","RATE_DAILY","PERIOD"]
[377568980,1754445046298,-400.0,0.00035616,14]
[377568981,1754445046307,-1113.65,0.00035616,14]
[377568982,1754445046316,-400.0,0.00035616,14]
[377568983,1754445046325,-400.0,0.00035616,14]
[377568984,1754445046335,-400.0,0.00035616,14]
[377568985,1754445046344,-400.0,0.00035616,14]
[377568986,1754445046353,-1132.02,0.00035616,14]
[377568987,1754445046363,-400.0,0.00035616,14]
[377568988,1754445046372,-400.0,0.00035616,14]
[377568989,1754445046382,-400.0,0.00035616,14]
[377568990,1754445046391,-400.0,0.00035616,14]
[377568991,1754445046401,-880.55,0.00035616,14]
[377568992,1754445046410,-565.44,0.00035616,14]
[377568993,1754445046419,-632.81,0.00035616,14]
[377568994,1754445046428,-1935.98,0.00035616,14]
[377568995,1754445046437,-432.07,0.00035616,14]
[377568996,1754445046447,-2058.7,0.00035616,14]
[377568997,1754445046456,-2459.29,0.00035616,14]
[377568998,1754445046465,-952.79,0.00035616,14]
[377568999,1754445046474,-400.0,0.00035616,14]
[377569000,1754445046483,-400.0,0.00035616,14]
[377569001,1754445046493,-400.0,0.00035616,14]
[377569002,1754445046502,-400.0,0.00035616,14]
[377569003,1754445046512,-400.0,0.00035616,14]
[377569004,1754445046523,-400.0,0.00035616,14]
[377569005,1754445046534,-400.0,0.00035616,14]
[377569006,1754445046543,-1200.18,0.00035616,14]
[377569007,1754445046552,-651.88,0.00035616,14]
[377569008,1754445046561,-400.0,0.00035616,14]
[377569009,1754445046571,-1468.29,0.00035616,14]
[377569010,1754445046580,-694.29,0.00035616,14]
[377569011,1754445046590,-1615.6,0.00035616,14]
[377569012,1754445046599,-694.29,0.00035616,14]
[377569013,1754445046608,-694.29,0.00035616,14]
[377569014,1754445046618,-694.29,0.00035616,14]
[377569015,1754445046627,-400.0,0.00035616,14]
[377569016,1754445046637,-694.29,0.00035616,14]
[377569017,1754445046647,-694.29,0.00035616,14]
[377569018,1754445046656,-620.14,0.00035616,14]
[377569019,1754445046666,-694.29,0.00035616,14]
[377569020,1754445046675,-890.38,0.00035616,14]
[377569021,1754445046684,-694.29,0.00035616,14]
[377569022,1754445046693,-1559.95,0.00035616,14]
[377569023,1754445046703,-554.46,0.00035616,14]
[377569024,1754445046712,-400.0,0.00035616,14]
[377569025,1754445046722,-3323.49,0.00035616,14]
[377569026,1754445046732,-740.32,0.00035616,14]
[377569027,1754445046742,-388.76954349,0.00035616,14]
[377569028,1754445046752,-1792.71,0.00035616,14]
[377569029,1754445046762,-400.0,0.00035616,14]
[377569030,1754445046771,-500.0,0.00035616,14]
[377569031,1754445046781,-400.0,0.00035616,14]
[377569032,1754445046791,-400.0,0.00035616,14]
[377569033,1754445046800,-670.67,0.00035616,14]
[377569034,1754445046812,-500.0,0.00035616,14]
[377569035,1754445046822,-500.0,0.00035616,14]
[377569036,1754445046831,-400.0,0.00035616,14]
[377569037,1754445046840,-510.14331313,0.00035616,14]
[377569038,1754445046851,-400.0,0.00035616,14]
[377569039,1754445046860,-423.31,0.00035616,14]
[377569040,1754445046876,-400.69634094,0.00035616,14]
[377569041,1754445046886,-401.2411722,0.00035616,14]
[377569042,1754445046896,-400.0,0.00035616,14]
[377569043,1754445046906,-400.0,0.00035616,14]
[377569044,1754445046916,-400.0,0.00035616,14]
[377569045,1754445046927,-629.22,0.00035616,14]
[377569046,1754445046938,-1278.36,0.00035616,14]
[377569047,1754445046949,-605.83,0.00035616,14]
[377569048,1754445046958,-407.8833312,0.00035616,14]
[377569049,1754445046968,-1742.73,0.00035616,14]
[377569050,1754445046978,-840.63,0.00035616,14]
[377569051,1754445046987,-400.0,0.00035616,14]
[377569052,1754445046997,-400.0,0.00035616,14]
[377569053,1754445047007,-2115.6,0.00035616,14]
[377569054,1754445047017,-2121.86,0.00035616,14]
[377569055,1754445047027,-400.0,0.00035616,14]
[377569056,1754445047037,-1594.04,0.00035616,14]
[377569057,1754445047047,-400.0,0.00035616,14]
[377569058,1754445047057,-400.0,0.00035616,14]
[377569059,1754445047067,-400.0,0.00035616,14]
[377569060,1754445047077,-1906.92,0.00035616,14]
[377569061,1754445047087,-400.0,0.00035616,14]
[377569062,1754445047096,-2029.65,0.00035616,14]
[377569063,1754445047106,-401.05124272,0.00035616,2]
[377569064,1754445047116,-1284.54,0.00035616,14]
[377569065,1754445047125,-639.18,0.00035616,14]
[377569066,1754445047135,-400.0,0.00035616,14]
[377569067,1754445047144,-400.0,0.00035616,14]
[377569068,1754445047154,-867.89,0.00035616,14]
[377569069,1754445047163,-400.0,0.00035616,14]
[377569070,1754445047173,-986.68,0.00035616,14]
[377569071,1754445047183,-768.12,0.00035616,14]
[377569072,1754445047192,-1728.43,0.00035616,14]
[377569073,1754445047202,-400.0,0.00035616,2]
[377569074,1754445047212,-400.71983141,0.00035616,14]
[377569075,1754445047221,-400.0,0.00035616,14]
[377569076,1754445047231,-500.0,0.00035616,2]
[377569077,1754445047241,-1056.28,0.00035616,14]
[377569078,1754445047250,-400.0,0.00035616,14]
[377569079,1754445047260,-500.0,0.00035616,2]
[377569080,1754445047269,-500.0,0.00035616,2]
[377569081,1754445047279,-543.87858427,0.00035616,2]
[377569082,1754445047288,-402.46029004,0.00035616,14]
[377569083,1754445047297,-1087.98,0.00035616,14]
[377569084,1754445047307,-1331.35,0.00035616,14]
[377569085,1754445047317,-818.29,0.00035616,2]
[377569086,1754445047326,-400.0,0.00035616,14]
[377569087,1754445047335,-400.0,0.00035616,14]
[377569088,1754445047345,-400.0,0.00035616,14]
[377569089,1754445047354,-855.07,0.00035616,14]
[377569090,1754445047364,-1671.93,0.00035616,14]
[377569091,1754445047373,-400.0,0.00035616,14]
[377569092,1754445047382,-400.0,0.00035616,14]
[377569093,1754445047392,-915.29,0.00035616,14]
[377569094,1754445047402,-400.0,0.00035616,14]
[377569095,1754445047411,-1250.29,0.00035616,14]
[377569096,1754445047421,-987.79,0.00035616,14]
[377569097,1754445047430,-166.945974,0.00035616,14]
[377569098,1754445047440,-400.0,0.00035616,14]
[377569099,1754445047450,-400.0,0.00035616,14]
[377569100,1754445047460,-519.45180948,0.00035616,14]
[377569101,1754445047469,-400.0,0.00035616,2]
[377569102,1754445047479,-400.0,0.00035616,14]
[377569103,1754445047489,-400.0,0.00035616,14]
[377569104,1754445047498,-1706.07,0.00035616,14]
[377569105,1754445047508,-4680.28,0.00035616,14]
[377569106,1754445047517,-400.0,0.00035616,14]
[377569107,1754445047528,-400.0,0.00035616,14]
[377569108,1754445047537,-400.0,0.00035616,14]
[377569109,1754445047547,-1209.91,0.00035616,14]
[377569110,1754445047556,-2398.75,0.00035616,14]
[377569111,1754445047566,-787.03,0.00035616,14]
[377569112,1754445047575,-400.0,0.00035616,14]
[377569113,1754445047586,-850.29,0.00035616,14]
[377569114,1754445047600,-400.0,0.00035616,14]
[377569115,1754445047610,-400.0,0.00035616,14]
[377569116,1754445047619,-400.0,0.00035616,14]
[377569117,1754445047629,-2065.74,0.00035616,14]
[377569118,1754445047639,-453.59,0.00035616,14]
[377569119,1754445047649,-400.0,0.00035616,14]
[377569120,1754445047659,-500.0,0.00035616,14]
[377569121,1754445047669,-400.0,0.00035616,14]
[377569122,1754445047678,-400.0,0.00035616,14]
[377569123,1754445047688,-400.0,0.00035616,14]
[377569124,1754445047698,-1925.3,0.00035616,14]
[377569125,1754445047707,-400.0,0.00035616,14]
[377569126,1754445047717,-400.0,0.00035616,14]
[377569127,1754445047727,-449.51,0.00035616,14]
[377569128,1754445047736,-802.3,0.00035616,14]
[377569129,1754445047746,-400.0,0.00035616,14]
[377569130,1754445047756,-1899.36,0.00035616,14]
[377569131,1754445047766,-400.0,0.00035616,14]
[377569132,1754445047778,-723.29,0.00035616,14]
[377569133,1754445047787,-827.55,0.00035616,14]
[377569134,1754445047797,-400.0,0.00035616,14]
[377569135,1754445047807,-400.0,0.00035616,14]
[377569136,1754445047820,-693.92,0.00035616,14]
[377569137,1754445047830,-1605.43,0.00035616,14]
[377569138,1754445047840,-515.73082988,0.00035616,14]
[377569139,1754445047850,-400.0,0.00035616,14]
[377569140,1754445047860,-1841.43,0.00035616,14]
[377569141,1754445047870,-400.0,0.00035616,14]
[377569142,1754445047880,-400.0,0.00035616,14]
[377569143,1754445047890,-400.0,0.00035616,14]
[377569144,1754445047900,-401.01997191,0.00035616,14]
[377569145,1754445047911,-400.0,0.00035616,14]
[377569146,1754445047921,-400.0,0.00035616,14]
[377569147,1754445047936,-2206.71,0.00035616,14]
[377569148,1754445047946,-400.0,0.00035616,14]
[377569149,1754445047956,-2337.97,0.00035616,14]
[377569150,1754445047966,-400.0,0.00035616,14]
[377569151,1754445047976,-500.0,0.00035616,14]
[377569152,1754445047987,-500.0,0.00035616,14]
[377569153,1754445047997,-500.0,0.00035616,14]
[377569154,1754445048007,-500.0,0.00035616,14]
[377569155,1754445048016,-500.0,0.00035616,14]
[377569156,1754445048025,-1457.88,0.00035616,14]
[377569157,1754445048035,-400.0,0.00035616,14]
[377569158,1754445048045,-500.0,0.00035616,14]
[377569159,1754445048056,-500.0,0.00035616,14]
[377569160,1754445048066,-500.0,0.00035616,14]
[377569161,1754445048076,-508.36946212,0.00035616,14]
[377569162,1754445048086,-1789.45,0.00035616,14]
[377569163,1754445048096,-2047.12,0.00035616,14]
[377569164,1754445048106,-2197.84,0.00035616,14]
[377569165,1754445048117,-400.0,0.00035616,14]
[377569166,1754445048126,-400.0,0.00035616,14]
[377569167,1754445048137,-400.0,0.00035616,14]
[377569168,1754445048148,-677.89,0.00035616,14]
[377569169,1754445048158,-2021.48,0.00035616,14]
[377569170,1754445048168,-400.0,0.00035616,14]
[377569171,1754445048178,-400.0,0.00035616,14]
[377569172,1754445048188,-287.38349083,0.00035616,14]
[377569173,1754445048198,-565.33,0.00035616,14]
[377569174,1754445048208,-1499.56,0.00035616,14]
[377569175,1754445048219,-400.0,0.00035616,2]
[377569176,1754445048228,-426.85,0.00035616,14]
[377569177,1754445048238,-400.0,0.00035616,14]
[377569178,1754445048248,-400.0,0.00035616,14]
[377569179,1754445048258,-1904.85,0.00035616,14]
[377569180,1754445048268,-461.06446057,0.00035616,14]
[377569181,1754445048278,-1056.9,0.00035616,14]
[377569182,1754445048289,-400.0,0.00035616,14]
[377569183,1754445048299,-400.0,0.00035616,14]
[377569184,1754445048311,-400.0,0.00035616,14]
[377569185,1754445048321,-461.52,0.00035616,14]
[377569186,1754445048331,-400.0,0.00035616,14]
[377569187,1754445048341,-400.0,0.00035616,14]
[377569188,1754445048351,-400.0,0.00035616,14]
[377569189,1754445048360,-1030.82,0.00035616,14]
[377569190,1754445048370,-1005.57,0.00035616,14]
[377569191,1754445048380,-400.0,0.00035616,14]
[377569192,1754445048389,-400.0,0.00035616,14]
[377569193,1754445048399,-1475.54,0.00035616,14]
[377569194,1754445048409,-400.0,0.00035616,14]
[377569195,1754445048419,-912.69,0.00035616,14]
[377569196,1754445048429,-422.51,0.00035616,14]
[377569197,1754445048439,-400.0,0.00035616,14]
[377569198,1754445048448,-400.0,0.00035616,14]
[377569199,1754445048457,-451.74,0.00035616,14]
[377569200,1754445048467,-981.32,0.00035616,14]
[377569201,1754445048477,-910.24,0.00035616,14]
[377569202,1754445048486,-400.0,0.00035616,14]
[377569203,1754445048496,-1838.27,0.00035616,14]
[377569204,1754445048506,-1750.74,0.00035616,14]
[377569205,1754445048516,-1148.89,0.00035616,14]
[377569206,1754445048527,-489.78,0.00035616,14]
[377569207,1754445048537,-1112.24,0.00035616,14]
[377569208,1754445048548,-3267.86,0.00035616,14]
[377569209,1754445048558,-1269.87,0.00035616,14]
[377569210,1754445048567,-2011.52,0.00035616,14]
[377569211,1754445048578,-400.0,0.00035616,14]
[377569212,1754445048587,-1943.34,0.00035616,14]
[377569213,1754445048597,-400.0,0.00035616,14]
[377569214,1754445048607,-400.0,0.00035616,14]
[377569215,1754445048617,-400.0,0.00035616,14]
[377569216,1754445048626,-400.0,0.00035616,14]
[377569217,1754445048636,-400.0,0.00035616,14]
[377569218,1754445048646,-400.0,0.00035616,14]
[377569219,1754445048656,-400.0,0.00035616,14]
[377569220,1754445048666,-400.0,0.00035616,14]
[377569221,1754445048676,-516.87991406,0.00035616,14]
[377569222,1754445048686,-1836.14,0.00035616,14]
[377569223,1754445048696,-400.3727224,0.00035616,14]
[377569224,1754445048706,-462.85,0.00035616,14]
[377569225,1754445048717,-450.40426244,0.00035616,14]
[377569226,1754445048727,-2886.93,0.00035616,14]
[377569227,1754445048737,-500.55,0.00035616,14]
[377569228,1754445048747,-1923.9,0.00035616,14]
[377569229,1754445048756,-400.0,0.00035616,14]
[377569230,1754445048766,-400.0,0.00035616,14]
[377569231,1754445048775,-788.92,0.00035616,14]
[377569232,1754445048785,-400.0,0.00035616,14]
[377569233,1754445048797,-1842.81,0.00035616,14]
[377569234,1754445048809,-635.4,0.00035616,14]
[377569235,1754445048821,-400.0,0.00035616,14]
[377569236,1754445048831,-719.56,0.00035616,14]
[377569237,1754445048841,-3804.91,0.00035616,14]
[377569238,1754445048850,-400.0,0.00035616,14]
[377569239,1754445048861,-400.0,0.00035616,14]
[377569240,1754445048870,-1965.5,0.00035616,14]
[377569241,1754445048880,-400.0,0.00035616,14]
[377569242,1754445048890,-664.17,0.00035616,14]
[377569243,1754445048899,-528.91,0.00035616,14]
[377569244,1754445048909,-3285.06,0.00035616,14]
[377569245,1754445048920,-400.0,0.00035616,14]
[377569246,1754445048939,-1611.48,0.00035616,14]
[377569247,1754445048950,-400.0,0.00035616,14]
[377569248,1754445048961,-300.0,0.00035616,14]
[377569249,1754445048971,-400.0,0.00035616,14]
[377569250,1754445048983,-400.0,0.00035616,14]
[377569251,1754445048993,-843.81,0.00035616,14]
[377569252,1754445049003,-664.72,0.00035616,14]
[377569253,1754445049014,-2286.3,0.00035616,14]
[377569254,1754445049024,-400.0,0.00035616,14]
[377569255,1754445049035,-400.0,0.00035616,14]
[377569256,1754445049045,-1228.65,0.00035616,14]
[377569257,1754445049055,-817.71,0.00035616,14]
[377569258,1754445049065,-400.0,0.00035616,14]
[377569259,1754445049075,-400.0,0.00035616,14]
[377569260,1754445049085,-2285.89,0.00035616,14]
[377569261,1754445049094,-400.0,0.00035616,14]
[377569262,1754445049104,-688.12,0.00035616,14]
[377569263,1754445049114,-400.0,0.00035616,14]
[377569264,1754445049125,-534.6,0.00035616,14]
[377569265,1754445049135,-691.09,0.00035616,14]
[377569266,1754445049146,-400.0,0.00035616,14]
[377569267,1754445049157,-826.81,0.00035616,14]
[377569268,1754445049363,-774.95,0.00035616,14]
[377569269,1754445049376,-707.35,0.00035616,14]
[377569270,1754445049386,-2483.22,0.00035616,14]
[377569271,1754445049395,-2387.79,0.00035616,14]
[377569272,1754445049404,-1988.08,0.00035616,14]
[377569273,1754445049414,-400.0,0.00035616,14]
[377569274,1754445049423,-400.0,0.00035616,14]
[377569275,1754445049433,-460.78,0.00035616,14]
[377569276,1754445049443,-400.0,0.00035616,14]
[377569277,1754445049454,-1013.02,0.00035616,14]
[377569278,1754445049465,-697.09,0.00035616,14]
[377569279,1754445049474,-455.45,0.00035616,14]
[377569280,1754445049483,-3032.43,0.00035616,14]
[377569281,1754445049492,-1290.32,0.00035616,14]
[377569282,1754445049502,-1704.34,0.00035616,14]
[377569283,1754445049512,-500.0,0.00035616,14]
[377569284,1754445049522,-1254.27,0.00035616,14]
[377569285,1754445049533,-500.0,0.00035616,14]
[377569286,1754445049543,-1325.26,0.00035616,14]
[377569287,1754445049552,-500.0,0.00035616,14]
[377569288,1754445049561,-2854.84,0.00035616,14]
[377569289,1754445049575,-400.0,0.00035616,14]
[377569290,1754445049592,-400.0,0.00035616,14]
[377569291,1754445049601,-400.0,0.00035616,14]
[377569292,1754445049610,-400.57290119,0.00035616,14]
[377569293,1754445049620,-587.45,0.00035616,14]
[377569294,1754445049630,-400.0,0.00035616,14]
[377569295,1754445049640,-2049.87,0.00035616,14]
[377569296,1754445049649,-400.0,0.00035616,14]
[377569297,1754445049659,-400.0,0.00035616,14]
[377569298,1754445049668,-400.0,0.00035616,14]
[377569299,1754445049677,-1693.96,0.00035616,14]
[377569300,1754445049687,-990.4,0.00035616,14]
[377569301,1754445049696,-3413.9,0.00035616,14]
[377569302,1754445049705,-400.0,0.00035616,14]
[377569303,1754445049714,-400.0,0.00035616,14]
[377569304,1754445049723,-1042.69,0.00035616,14]
[377569305,1754445049732,-400.0,0.00035616,14]
[377569306,1754445049742,-400.0,0.00035616,14]
[377569307,1754445049751,-1556.67,0.00035616,14]
[377569308,1754445049761,-404.38465231,0.00035616,14]
[377569309,1754445049771,-477.26,0.00035616,14]
[377569310,1754445049781,-400.0,0.00035616,14]
[377569311,1754445049791,-400.0,0.00035616,14]
[377569312,1754445049801,-402.35,0.00035616,14]
[377569313,1754445049814,-400.0,0.00035616,14]
[377569314,1754445049830,-400.0,0.00035616,14]
[377569315,1754445049839,-2127.16,0.00035616,14]
[377569316,1754445049849,-1286.74,0.00035616,14]
[377569317,1754445049859,-400.0,0.00035616,14]
[377569318,1754445049869,-400.0,0.00035616,14]
[377569319,1754445049878,-401.92364808,0.00035616,14]
[377569320,1754445049887,-650.36,0.00035616,14]
[377569321,1754445049898,-2983.78,0.00035616,14]
[377569322,1754445049907,-400.0,0.00035616,14]
[377569323,1754445049917,-404.30072922,0.00035616,14]
[377569324,1754445049927,-1272.91,0.00035616,14]
[377569325,1754445049936,-512.20116664,0.00035616,14]
[377569326,1754445049946,-400.0,0.00035616,14]
[377569327,1754445049956,-1978.73,0.00035616,14]
[377569328,1754445049967,-1167.76,0.00035616,14]
[377569329,1754445049976,-400.0,0.00035616,14]
[377569330,1754445049986,-537.68,0.00035616,14]
[377569331,1754445049996,-400.0,0.00035616,14]
[377569332,1754445050006,-400.0,0.00035616,14]
[377569333,1754445050015,-1618.78,0.00035616,14]
[377569334,1754445050025,-481.3,0.00035616,14]
[377569335,1754445050035,-400.0,0.00035616,14]
[377569336,1754445050045,-1023.05,0.00035616,14]
[377569337,1754445050055,-400.0,0.00035616,2]
[377569338,1754445050064,-400.0,0.00035616,14]
[377569339,1754445050074,-400.0,0.00035616,14]
[377569340,1754445050083,-400.0,0.00035616,14]
[377569341,1754445050093,-400.0,0.00035616,14]
[377569342,1754445050102,-456.75,0.00035616,14]
[377569343,1754445050114,-400.0,0.00035616,14]
[377569344,1754445050124,-400.0,0.00035616,14]
[377569345,1754445050134,-1487.38,0.00035616,14]
[377569346,1754445050143,-423.93,0.00035616,14]
[377569347,1754445050152,-400.0,0.00035616,14]
[377569348,1754445050162,-400.0,0.00035616,14]
[377569349,1754445050172,-1101.66,0.00035616,14]
[377569350,1754445050182,-1906.16,0.00035616,14]
[377569351,1754445050192,-400.0,0.00035616,14]
[377569352,1754445050202,-1382.08,0.00035616,14]
[377569353,1754445050212,-566.23,0.00035616,14]
[377569354,1754445050221,-400.0,0.00035616,14]
[377569355,1754445050232,-1089.74,0.00035616,14]
[377569356,1754445050241,-1123.2,0.00035616,14]
[377569357,1754445050250,-400.0,0.00035616,14]
[377569358,1754445050260,-1398.154307,0.00035616,14]
[377569359,1754445050270,-1620.16,0.00035616,14]
[377569360,1754445050280,-400.0,0.00035616,14]
[377569361,1754445050289,-400.0,0.00035616,14]
[377569362,1754445050299,-406.28855887,0.00035616,14]
[377569363,1754445050309,-825.89,0.00035616,14]
[377569364,1754445050319,-554.16,0.00035616,14]
[377569365,1754445050328,-400.0,0.00035616,14]
[377569366,1754445050338,-400.0,0.00035616,14]
[377569367,1754445050347,-2526.57,0.00035616,14]
[377569368,1754445050357,-400.0,0.00035616,14]
[377569369,1754445050366,-1043.57,0.00035616,14]
[377569370,1754445050375,-400.0,0.00035616,14]
[377569371,1754445050385,-400.0,0.00035616,14]
[377569372,1754445050395,-978.27,0.00035616,14]
[377569373,1754445050405,-400.0,0.00035616,14]
[377569374,1754445050416,-400.0,0.00035616,14]
[377569375,1754445050427,-400.0,0.00035616,14]
[377569376,1754445050437,-1121.455681,0.00035616,14]
[377569377,1754445050446,-870.7,0.00035616,14]
[377569378,1754445050455,-400.0,0.00035616,14]
[377569379,1754445050464,-400.0,0.00035616,14]
[377569380,1754445050474,-1579.29,0.00035616,14]
[377569381,1754445050483,-2370.33,0.00035616,14]
[377569382,1754445050492,-403.96572038,0.00035616,14]
[377569383,1754445050503,-400.0,0.00035616,14]
[377569384,1754445050512,-1586.040996,0.00035616,14]
[377569385,1754445050524,-1157.79,0.00035616,14]
[377569386,1754445050534,-1431.57,0.00035616,14]
[377569387,1754445050545,-766.55,0.00035616,14]
[377569388,1754445050554,-400.0,0.00035616,14]
[377569389,1754445050564,-400.0,0.00035616,14]
[377569390,1754445050573,-2107.14,0.00035616,14]
[377569391,1754445050582,-803.41,0.00035616,14]
[377569392,1754445050593,-400.0,0.00035616,14]
[377569393,1754445050603,-400.0,0.00035616,14]
[377569394,1754445050612,-509.96,0.00035616,14]
[377569395,1754445050621,-400.0,0.00035616,14]
[377569396,1754445050631,-400.0,0.00035616,14]
[377569397,1754445050640,-445.22,0.00035616,14]
[377569398,1754445050650,-400.76525206,0.00035616,14]
[377569399,1754445050659,-1003.35,0.00035616,14]
[377569400,1754445050669,-400.0,0.00035616,14]
[377569401,1754445050678,-400.0,0.00035616,14]
[377569402,1754445050688,-1001.5,0.00035616,14]
[377569403,1754445050698,-243.385005,0.00035616,14]
[377569404,1754445050710,-596.41,0.00035616,14]
[377569405,1754445050720,-2459.31,0.00035616,14]
[377569406,1754445050730,-400.0,0.00035616,14]
[377569407,1754445050740,-1798.86,0.00035616,14]
[377569408,1754445050749,-163.835228,0.00035616,14]
[377569409,1754445050760,-400.0,0.00035616,14]
[377569410,1754445050769,-1145.0,0.00035616,14]
[377569411,1754445050780,-400.0,0.00035616,14]
[377569412,1754445050791,-400.0,0.00035616,14]
[377569413,1754445050800,-400.0,0.00035616,14]
[377569414,1754445050811,-400.0,0.00035616,14]
[377569415,1754445050822,-859.74,0.00035616,14]
[377569416,1754445050832,-2751.78,0.00035616,14]
[377569417,1754445050842,-400.0,0.00035616,14]
[377569418,1754445050852,-400.0,0.00035616,14]
[377569419,1754445050862,-416.83,0.00035616,14]
[377569420,1754445050873,-1520.4,0.00035616,14]
[377569421,1754445050882,-400.0,0.00035616,14]
[377569422,1754445050892,-1607.76,0.00035616,14]
[377569423,1754445050902,-1527.37,0.00035616,14]
[377569424,1754445050912,-685.92,0.00035616,14]
[377569425,1754445050921,-439.67,0.00035616,14]
[377569426,1754445050930,-400.0,0.00035616,14]
[377569427,1754445050940,-2046.3,0.00035616,14]
[377569428,1754445050950,-2962.64,0.00035616,14]
[377569429,1754445050959,-400.0,0.00035616,14]
[377569430,1754445050969,-400.0,0.00035616,14]
[377569431,1754445050978,-400.0,0.00035616,14]
[377569432,1754445050988,-400.0,0.00035616,14]
[377569433,1754445050998,-400.0,0.00035616,14]
[377569434,1754445051007,-1827.77,0.00035616,14]
[377569435,1754445051017,-400.0,0.00035616,14]
[377569436,1754445051029,-400.0,0.00035616,14]
[377569437,1754445051039,-2171.96,0.00035616,14]
[377569438,1754445051049,-2284.3,0.00035616,14]
[377569439,1754445051058,-1380.46,0.00035616,14]
[377569440,1754445051068,-400.0,0.00035616,14]
[377569441,1754445051079,-400.0,0.00035616,14]
[377569442,1754445051089,-977.84,0.00035616,14]
[377569443,1754445051098,-459.21,0.00035616,14]
[377569444,1754445051107,-400.0,0.00035616,14]
[377569445,1754445051117,-400.0,0.00035616,14]
[377569446,1754445051127,-400.0,0.00035616,14]
[377569447,1754445051136,-1461.2,0.00035616,14]
[377569448,1754445051146,-796.51,0.00035616,14]
[377569449,1754445051155,-400.0,0.00035616,14]
[377569450,1754445051166,-400.0,0.00035616,14]
[377569451,1754445051176,-400.0,0.00035616,14]
[377569452,1754445051186,-400.0,0.00035616,14]
[377569453,1754445051195,-1923.74,0.00035616,14]
[377569454,1754445051204,-986.73,0.00035616,14]
[377569455,1754445051214,-400.0,0.00035616,14]
[377569456,1754445051223,-400.0,0.00035616,14]
[377569457,1754445051232,-2614.37,0.00035616,14]
[377569458,1754445051242,-769.37,0.00035616,14]
[377569459,1754445051252,-400.0,0.00035616,14]
[377569460,1754445051261,-1290.75,0.00035616,14]
[377569461,1754445051271,-772.6,0.00035616,14]
[377569462,1754445051282,-400.0,0.00035616,14]
[377569463,1754445051291,-1352.85,0.00035616,14]
[377569464,1754445051300,-1209.54,0.00035616,14]
[377569465,1754445051309,-757.96,0.00035616,14]
[377569466,1754445051319,-754.97,0.00035616,14]
[377569467,1754445051328,-841.08,0.00035616,14]
[377569468,1754445051337,-400.0,0.00035616,14]
[377569469,1754445051347,-400.0,0.00035616,14]
[377569470,1754445051357,-2094.9,0.00035616,14]
[377569471,1754445051366,-400.0,0.00035616,14]
[377569472,1754445051375,-624.89,0.00035616,14]
[377569473,1754445051385,-400.0,0.00035616,14]
[377569474,1754445051394,-400.0,0.00035616,14]
[377569475,1754445051404,-500.0,0.00035616,14]
[377569476,1754445051414,-2492.87,0.00035616,14]
[377569477,1754445051424,-500.0,0.00035616,14]
[377569478,1754445051434,-500.0,0.00035616,14]
[377569479,1754445051443,-500.0,0.00035616,14]